[Event "Titled Tuesday Blitz April 26 Late 2022"]
[White "Siddharth, Jagadeesh"]
[Black "Pinheiro, Iung Alicio de O."]
[WhiteFideId "5818320"]
[BlackFideId "2104350"]
[WhiteElo "2127"]
[BlackElo "2472"]
[Result "1-0"]
[Round "04"]
[TimeControl "180+1"]
[Date "2022.04.26"]
[WhiteClock "0:00:15"]
[BlackClock "0:00:22"]

1. e4 {[%clk 0:03:00]}  c5 {[%clk 0:02:58]} 2. Nf3 {[%clk 0:03:00]}  Nc6 {[%clk 0:02:58]} 3. Bb5 {[%clk 0:03:00]}  e6 {[%clk 0:02:57]} 4. O-O {[%clk 0:02:59]}  Nge7 {[%clk 0:02:57]} 5. Re1 {[%clk 0:02:59]}  Nd4 {[%clk 0:02:56]} 6. Nxd4 {[%clk 0:02:58]}  cxd4 {[%clk 0:02:57]} 7. b3 {[%clk 0:02:44]}  a6 {[%clk 0:02:56]} 8. Bd3 {[%clk 0:02:44]}  Nc6 {[%clk 0:02:56]} 9. Bb2 {[%clk 0:02:44]}  Bc5 {[%clk 0:02:40]} 10. a3 {[%clk 0:02:39]}  O-O {[%clk 0:02:38]} 11. b4 {[%clk 0:02:39]}  Ba7 {[%clk 0:02:30]} 12. f4 {[%clk 0:02:39]}  Ne7 {[%clk 0:02:13]} 13. Kh1 {[%clk 0:02:37]}  f5 {[%clk 0:02:13]} 14. Qf3 {[%clk 0:02:26]}  Rb8 {[%clk 0:02:07]} 15. e5 {[%clk 0:02:22]}  b5 {[%clk 0:02:05]} 16. Qf2 {[%clk 0:02:22]}  Nc6 {[%clk 0:01:47]} 17. Qg3 {[%clk 0:02:12]}  Bb7 {[%clk 0:01:47]} 18. Be2 {[%clk 0:02:12]}  Ne7 {[%clk 0:01:42]} 19. Bf3 {[%clk 0:02:05]}  Bxf3 {[%clk 0:01:36]} 20. Qxf3 {[%clk 0:02:06]}  Rc8 {[%clk 0:01:37]} 21. Qd3 {[%clk 0:02:02]}  Rc4 {[%clk 0:01:36]} 22. Ra2 {[%clk 0:01:28]}  Qc7 {[%clk 0:01:33]} 23. Ba1 {[%clk 0:01:27]}  Rc8 {[%clk 0:01:32]} 24. c3 {[%clk 0:01:11]}  Nd5 {[%clk 0:01:27]} 25. g3 {[%clk 0:01:10]}  Qc6 {[%clk 0:01:05]} 26. Qf3 {[%clk 0:01:07]}  Ne7 {[%clk 0:00:42]} 27. Qxc6 {[%clk 0:01:06]}  R4xc6 {[%clk 0:00:43]} 28. Kg2 {[%clk 0:01:05]}  Nd5 {[%clk 0:00:42]} 29. Kf3 {[%clk 0:01:02]}  Nb6 {[%clk 0:00:31]} 30. Ke2 {[%clk 0:00:57]}  Na4 {[%clk 0:00:29]} 31. Kd3 {[%clk 0:00:55]}  Kf7 {[%clk 0:00:29]} 32. Rc2 {[%clk 0:00:50]}  h6 {[%clk 0:00:28]} 33. Rec1 {[%clk 0:00:50]}  dxc3 {[%clk 0:00:24]} 34. Nxc3 {[%clk 0:00:48]}  Nb6 {[%clk 0:00:24]} 35. Ne2 {[%clk 0:00:43]}  Rxc2 {[%clk 0:00:22]} 36. Rxc2 {[%clk 0:00:43]}  Rxc2 {[%clk 0:00:23]} 37. Kxc2 {[%clk 0:00:44]}  Nd5 {[%clk 0:00:21]} 38. Bd4 {[%clk 0:00:42]}  Bb8 {[%clk 0:00:19]} 39. Nc3 {[%clk 0:00:39]}  Nxc3 {[%clk 0:00:19]} 40. dxc3 {[%clk 0:00:40]}  g5 {[%clk 0:00:19]} 41. Kd3 {[%clk 0:00:40]}  gxf4 {[%clk 0:00:18]} 42. gxf4 {[%clk 0:00:41]}  Kg6 {[%clk 0:00:19]} 43. h3 {[%clk 0:00:36]}  Kh5 {[%clk 0:00:19]} 44. Bf2 {[%clk 0:00:37]}  Bc7 {[%clk 0:00:19]} 45. c4 {[%clk 0:00:35]}  Bd8 {[%clk 0:00:19]} 46. cxb5 {[%clk 0:00:24]}  axb5 {[%clk 0:00:20]} 47. Kc3 {[%clk 0:00:24]}  Kg6 {[%clk 0:00:20]} 48. Kb3 {[%clk 0:00:23]}  Kf7 {[%clk 0:00:20]} 49. a4 {[%clk 0:00:24]}  bxa4+ {[%clk 0:00:21]} 50. Kxa4 {[%clk 0:00:25]}  Ke8 {[%clk 0:00:21]} 51. Kb5 {[%clk 0:00:25]}  Bc7 {[%clk 0:00:22]} 52. Ka6 {[%clk 0:00:25]}  Kd8 {[%clk 0:00:22]} 53. b5 {[%clk 0:00:18]}  Kc8 {[%clk 0:00:22]} 54. b6 {[%clk 0:00:18]}  Bb8 {[%clk 0:00:22]} 55. b7+ {[%clk 0:00:17]}  Kc7 {[%clk 0:00:22]} 56. Ba7 {[%clk 0:00:15]} 1-0


[Site "https://www.chess.com"]

[Event "Titled Tuesday Blitz April 26 Late 2022"]
[White "Song, Michael"]
[Black "Zakhartsov, Vladimir"]
[WhiteFideId "2613190"]
[BlackFideId "4145097"]
[WhiteElo "2274"]
[BlackElo "2491"]
[Result "1-0"]
[Round "04"]
[TimeControl "180+1"]
[Date "2022.04.26"]
[WhiteClock "0:00:12"]
[BlackClock "0:00:11"]

1. e4 {[%clk 0:03:00]}  c5 {[%clk 0:02:56]} 2. Nf3 {[%clk 0:02:59]}  d5 {[%clk 0:02:54]} 3. Nc3 {[%clk 0:02:56]}  d4 {[%clk 0:02:51]} 4. Ne2 {[%clk 0:02:57]}  Nc6 {[%clk 0:02:50]} 5. d3 {[%clk 0:02:55]}  e5 {[%clk 0:02:50]} 6. g3 {[%clk 0:02:54]}  f5 {[%clk 0:02:46]} 7. exf5 {[%clk 0:02:53]}  Bxf5 {[%clk 0:02:46]} 8. Bg2 {[%clk 0:02:53]}  Qd7 {[%clk 0:02:46]} 9. h3 {[%clk 0:02:51]}  Bd6 {[%clk 0:02:45]} 10. g4 {[%clk 0:02:51]}  Be6 {[%clk 0:02:44]} 11. Ng5 {[%clk 0:02:50]}  Nf6 {[%clk 0:02:43]} 12. Nxe6 {[%clk 0:02:48]}  Qxe6 {[%clk 0:02:44]} 13. Ng3 {[%clk 0:02:48]}  Nd5 {[%clk 0:02:37]} 14. Qf3 {[%clk 0:02:29]}  Nf4 {[%clk 0:02:35]} 15. Nf5 {[%clk 0:02:13]}  O-O {[%clk 0:02:30]} 16. O-O {[%clk 0:02:10]}  g6 {[%clk 0:02:28]} 17. Bxf4 {[%clk 0:02:09]}  gxf5 {[%clk 0:02:26]} 18. gxf5 {[%clk 0:01:55]}  Qxf5 {[%clk 0:02:09]} 19. Qd5+ {[%clk 0:01:51]}  Kh8 {[%clk 0:02:06]} 20. Bg3 {[%clk 0:01:45]}  Rad8 {[%clk 0:01:48]} 21. a3 {[%clk 0:01:44]}  Rg8 {[%clk 0:01:40]} 22. Rae1 {[%clk 0:01:37]}  Rg7 {[%clk 0:01:40]} 23. Re4 {[%clk 0:01:28]}  Be7 {[%clk 0:01:36]} 24. Qb3 {[%clk 0:01:24]}  Bf6 {[%clk 0:01:28]} 25. Qb5 {[%clk 0:01:12]}  Ne7 {[%clk 0:01:04]} 26. Qxc5 {[%clk 0:01:04]}  Nd5 {[%clk 0:01:05]} 27. Rg4 {[%clk 0:00:58]}  Rc7 {[%clk 0:01:04]} 28. Qxa7 {[%clk 0:00:46]}  h5 {[%clk 0:01:02]} 29. Be4 {[%clk 0:00:45]}  Qd7 {[%clk 0:00:57]} 30. Rg6 {[%clk 0:00:39]}  Bg7 {[%clk 0:00:56]} 31. h4 {[%clk 0:00:31]}  Qf7 {[%clk 0:00:41]} 32. Qa5 {[%clk 0:00:26]}  b6 {[%clk 0:00:34]} 33. Qb5 {[%clk 0:00:23]}  Rxc2 {[%clk 0:00:28]} 34. Qb3 {[%clk 0:00:23]}  Re2 {[%clk 0:00:22]} 35. Qd1 {[%clk 0:00:20]}  Rxe4 {[%clk 0:00:11]} 36. Qxh5+ {[%clk 0:00:21]}  Kg8 {[%clk 0:00:12]} 37. dxe4 {[%clk 0:00:19]}  Ne7 {[%clk 0:00:13]} 38. Rg5 {[%clk 0:00:17]}  Qxh5 {[%clk 0:00:12]} 39. Rxh5 {[%clk 0:00:18]}  Nc6 {[%clk 0:00:13]} 40. Rc1 {[%clk 0:00:17]}  Rd6 {[%clk 0:00:13]} 41. Rg5 {[%clk 0:00:13]}  Kf7 {[%clk 0:00:13]} 42. h5 {[%clk 0:00:14]}  Bh6 {[%clk 0:00:13]} 43. Rg6 {[%clk 0:00:13]}  Bxc1 {[%clk 0:00:06]} 44. Rxd6 {[%clk 0:00:12]}  Na5 {[%clk 0:00:05]} 45. Bxe5 {[%clk 0:00:10]}  Nc4 {[%clk 0:00:05]} 46. Rc6 {[%clk 0:00:11]}  b5 {[%clk 0:00:02]} 47. Bxd4 {[%clk 0:00:07]}  Bf4 {[%clk 0:00:02]} 48. a4 {[%clk 0:00:06]}  bxa4 {[%clk 0:00:02]} 49. Rxc4 {[%clk 0:00:06]}  Ke7 {[%clk 0:00:02]} 50. Rxa4 {[%clk 0:00:06]}  Ke6 {[%clk 0:00:03]} 51. Ra5 {[%clk 0:00:07]}  Bh6 {[%clk 0:00:04]} 52. Rf5 {[%clk 0:00:07]}  Kd7 {[%clk 0:00:05]} 53. Kg2 {[%clk 0:00:08]}  Kc6 {[%clk 0:00:06]} 54. Be5 {[%clk 0:00:08]}  Kb5 {[%clk 0:00:06]} 55. Kf3 {[%clk 0:00:09]}  Kc4 {[%clk 0:00:07]} 56. Kg4 {[%clk 0:00:09]}  Kb4 {[%clk 0:00:08]} 57. Bf4 {[%clk 0:00:10]}  Kb3 {[%clk 0:00:09]} 58. Bxh6 {[%clk 0:00:10]}  Kc2 {[%clk 0:00:10]} 59. Bf4 {[%clk 0:00:11]}  Kb1 {[%clk 0:00:11]} 60. h6 {[%clk 0:00:12]} 1-0


[Site "https://www.chess.com"]

[Event "Titled Tuesday Blitz April 26 Late 2022"]
[White "Sovetbekova, Nurai"]
[Black "BM223344"]
[WhiteFideId "13801910"]
[WhiteElo "1538"]
[BlackElo "2446"]
[Result "0-1"]
[Round "04"]
[TimeControl "180+1"]
[Date "2022.04.26"]
[WhiteClock "0:00:14"]
[BlackClock "0:01:00"]

1. d4 {[%clk 0:03:00]}  Nf6 {[%clk 0:02:59]} 2. c4 {[%clk 0:03:00]}  g6 {[%clk 0:02:58]} 3. g3 {[%clk 0:03:00]}  Bg7 {[%clk 0:02:58]} 4. Bg2 {[%clk 0:03:00]}  O-O {[%clk 0:02:59]} 5. Nf3 {[%clk 0:03:01]}  d5 {[%clk 0:02:58]} 6. O-O {[%clk 0:03:00]}  c6 {[%clk 0:02:58]} 7. Ne5 {[%clk 0:02:42]}  Nbd7 {[%clk 0:02:47]} 8. f4 {[%clk 0:02:38]}  dxc4 {[%clk 0:02:44]} 9. Nxc4 {[%clk 0:02:32]}  Nb6 {[%clk 0:02:43]} 10. Nxb6 {[%clk 0:02:28]}  Qxb6 {[%clk 0:02:42]} 11. Nc3 {[%clk 0:02:28]}  Rd8 {[%clk 0:02:40]} 12. e3 {[%clk 0:02:25]}  c5 {[%clk 0:02:34]} 13. Na4 {[%clk 0:02:22]}  Qb5 {[%clk 0:02:23]} 14. Nxc5 {[%clk 0:02:19]}  Bg4 {[%clk 0:02:21]} 15. Qb3 {[%clk 0:02:17]}  Qe8 {[%clk 0:02:05]} 16. Bd2 {[%clk 0:02:00]}  Rab8 {[%clk 0:02:02]} 17. Rac1 {[%clk 0:01:57]}  b6 {[%clk 0:01:59]} 18. Na6 {[%clk 0:01:56]}  Rbc8 {[%clk 0:01:58]} 19. Nc7 {[%clk 0:01:44]}  Qd7 {[%clk 0:01:56]} 20. Nb5 {[%clk 0:01:42]}  Be2 {[%clk 0:01:55]} 21. a4 {[%clk 0:01:20]}  Bxf1 {[%clk 0:01:44]} 22. Rxf1 {[%clk 0:01:21]}  e6 {[%clk 0:01:36]} 23. Bc3 {[%clk 0:01:17]}  Nd5 {[%clk 0:01:36]} 24. Bxd5 {[%clk 0:01:13]}  exd5 {[%clk 0:01:36]} 25. Re1 {[%clk 0:01:06]}  Re8 {[%clk 0:01:32]} 26. Bb4 {[%clk 0:01:02]}  Rc6 {[%clk 0:01:28]} 27. Nc3 {[%clk 0:00:57]}  Rc4 {[%clk 0:01:28]} 28. Kf2 {[%clk 0:00:47]}  Qh3 {[%clk 0:01:24]} 29. Rh1 {[%clk 0:00:42]}  Rxd4 {[%clk 0:01:12]} 30. Nxd5 {[%clk 0:00:31]}  Qe6 {[%clk 0:01:00]} 31. exd4 {[%clk 0:00:18]}  Qe2+ {[%clk 0:00:59]} 32. Kg1 {[%clk 0:00:16]}  Bxd4+ {[%clk 0:01:00]} 33. Ne3 {[%clk 0:00:14]} 0-1


[Site "https://www.chess.com"]

[Event "Titled Tuesday Blitz April 26 Late 2022"]
[White "Suleymanli, Aydin"]
[Black "Romanchuk, Viktor"]
[WhiteFideId "13413937"]
[BlackFideId "14109271"]
[WhiteElo "2481"]
[BlackElo "2242"]
[Result "1-0"]
[Round "04"]
[TimeControl "180+1"]
[Date "2022.04.26"]
[WhiteClock "0:01:29"]
[BlackClock "0:00:18"]

1. e4 {[%clk 0:03:00]}  e6 {[%clk 0:02:56]} 2. d4 {[%clk 0:02:54]}  d5 {[%clk 0:02:51]} 3. Nd2 {[%clk 0:02:50]}  dxe4 {[%clk 0:02:51]} 4. Nxe4 {[%clk 0:02:51]}  Nd7 {[%clk 0:02:51]} 5. Nf3 {[%clk 0:02:47]}  Ngf6 {[%clk 0:02:51]} 6. Nxf6+ {[%clk 0:02:47]}  Nxf6 {[%clk 0:02:52]} 7. c3 {[%clk 0:02:47]}  c5 {[%clk 0:02:53]} 8. Ne5 {[%clk 0:02:47]}  a6 {[%clk 0:02:51]} 9. Qa4+ {[%clk 0:02:45]}  Nd7 {[%clk 0:02:50]} 10. Be3 {[%clk 0:02:32]}  Qc7 {[%clk 0:02:47]} 11. Bb5 {[%clk 0:02:14]}  cxd4 {[%clk 0:02:36]} 12. cxd4 {[%clk 0:02:12]}  axb5 {[%clk 0:01:30]} 13. Qxa8 {[%clk 0:02:07]}  Nxe5 {[%clk 0:01:31]} 14. dxe5 {[%clk 0:02:02]}  Bb4+ {[%clk 0:01:31]} 15. Kf1 {[%clk 0:01:59]}  O-O {[%clk 0:01:18]} 16. Rc1 {[%clk 0:01:58]}  Qd7 {[%clk 0:01:10]} 17. h3 {[%clk 0:01:43]}  b6 {[%clk 0:00:23]} 18. Qc6 {[%clk 0:01:41]}  Qd3+ {[%clk 0:00:21]} 19. Kg1 {[%clk 0:01:41]}  Bd7 {[%clk 0:00:20]} 20. Qxb6 {[%clk 0:01:36]}  Qe2 {[%clk 0:00:18]} 21. Qd4 {[%clk 0:01:29]} 1-0


[Site "https://www.chess.com"]

[Event "Titled Tuesday Blitz April 26 Late 2022"]
[White "Svane, Frederik"]
[Black "Grischuk, Alexander"]
[WhiteFideId "12923044"]
[BlackFideId "4126025"]
[WhiteElo "2459"]
[BlackElo "2762"]
[Result "1/2-1/2"]
[Round "04"]
[TimeControl "180+1"]
[Date "2022.04.26"]
[WhiteClock "0:01:55"]
[BlackClock "0:01:34"]

1. e4 {[%clk 0:03:00]}  e6 {[%clk 0:02:58]} 2. d4 {[%clk 0:03:00]}  d5 {[%clk 0:02:58]} 3. e5 {[%clk 0:03:00]}  c5 {[%clk 0:02:58]} 4. c3 {[%clk 0:03:01]}  Nc6 {[%clk 0:02:59]} 5. Nf3 {[%clk 0:03:01]}  Qb6 {[%clk 0:03:00]} 6. Be2 {[%clk 0:02:56]}  cxd4 {[%clk 0:02:59]} 7. cxd4 {[%clk 0:02:57]}  Nh6 {[%clk 0:02:59]} 8. Bxh6 {[%clk 0:02:57]}  Qxb2 {[%clk 0:03:00]} 9. Nbd2 {[%clk 0:02:57]}  gxh6 {[%clk 0:02:59]} 10. O-O {[%clk 0:02:57]}  Bd7 {[%clk 0:02:52]} 11. Rb1 {[%clk 0:02:54]}  Qxa2 {[%clk 0:02:52]} 12. Rxb7 {[%clk 0:02:54]}  Rb8 {[%clk 0:02:51]} 13. Rxb8+ {[%clk 0:02:53]}  Nxb8 {[%clk 0:02:52]} 14. Qa1 {[%clk 0:02:44]}  Qxa1 {[%clk 0:02:51]} 15. Rxa1 {[%clk 0:02:45]}  Nc6 {[%clk 0:02:51]} 16. Bb5 {[%clk 0:02:45]}  Bb4 {[%clk 0:02:48]} 17. Bxc6 {[%clk 0:02:42]}  Bxc6 {[%clk 0:02:47]} 18. Rxa7 {[%clk 0:02:43]}  O-O {[%clk 0:02:32]} 19. Nf1 {[%clk 0:02:41]}  Ra8 {[%clk 0:02:04]} 20. Rxa8+ {[%clk 0:02:34]}  Bxa8 {[%clk 0:02:05]} 21. g4 {[%clk 0:02:32]}  Bc6 {[%clk 0:02:00]} 22. Kg2 {[%clk 0:02:32]}  Bc3 {[%clk 0:01:43]} 23. Ng3 {[%clk 0:02:11]}  Ba4 {[%clk 0:01:35]} 24. Ne2 {[%clk 0:02:10]}  Bb2 {[%clk 0:01:34]} 25. Nfg1 {[%clk 0:01:55]} 1/2-1/2


[Site "https://www.chess.com"]

[Event "Titled Tuesday Blitz April 26 Late 2022"]
[White "Szpar, Milosz"]
[Black "Toncheva, Nadya"]
[WhiteFideId "1184989"]
[BlackFideId "2924056"]
[WhiteElo "2447"]
[BlackElo "1884"]
[Result "1-0"]
[Round "04"]
[TimeControl "180+1"]
[Date "2022.04.26"]
[WhiteClock "0:00:36"]
[BlackClock "0:00:07"]

1. e4 {[%clk 0:03:00]}  c5 {[%clk 0:02:59]} 2. Nf3 {[%clk 0:02:58]}  d6 {[%clk 0:02:59]} 3. d4 {[%clk 0:02:56]}  cxd4 {[%clk 0:02:59]} 4. Qxd4 {[%clk 0:02:57]}  a6 {[%clk 0:02:56]} 5. c4 {[%clk 0:02:56]}  Nc6 {[%clk 0:02:56]} 6. Qe3 {[%clk 0:02:55]}  Bg4 {[%clk 0:02:53]} 7. Nbd2 {[%clk 0:02:53]}  Nf6 {[%clk 0:02:51]} 8. h3 {[%clk 0:02:52]}  Bxf3 {[%clk 0:02:50]} 9. Nxf3 {[%clk 0:02:52]}  g6 {[%clk 0:02:50]} 10. Be2 {[%clk 0:02:49]}  Bg7 {[%clk 0:02:50]} 11. O-O {[%clk 0:02:50]}  Rc8 {[%clk 0:02:49]} 12. Bd2 {[%clk 0:02:38]}  O-O {[%clk 0:02:44]} 13. Rac1 {[%clk 0:02:32]}  Nd7 {[%clk 0:02:33]} 14. b3 {[%clk 0:02:29]}  Qc7 {[%clk 0:02:21]} 15. Rfd1 {[%clk 0:02:28]}  Nde5 {[%clk 0:01:59]} 16. Be1 {[%clk 0:02:17]}  Nxf3+ {[%clk 0:01:48]} 17. Bxf3 {[%clk 0:02:16]}  h5 {[%clk 0:01:41]} 18. Be2 {[%clk 0:02:03]}  Kh7 {[%clk 0:01:34]} 19. Bd2 {[%clk 0:01:58]}  Nd4 {[%clk 0:01:26]} 20. Bf1 {[%clk 0:01:56]}  Ne6 {[%clk 0:01:18]} 21. b4 {[%clk 0:01:53]}  Bd4 {[%clk 0:01:12]} 22. Qd3 {[%clk 0:01:42]}  Qb6 {[%clk 0:01:08]} 23. Be1 {[%clk 0:01:42]}  Be5 {[%clk 0:00:58]} 24. Kh1 {[%clk 0:01:20]}  Rc7 {[%clk 0:00:56]} 25. g3 {[%clk 0:01:13]}  h4 {[%clk 0:00:50]} 26. f4 {[%clk 0:01:11]}  Bg7 {[%clk 0:00:46]} 27. f5 {[%clk 0:01:09]}  Nd8 {[%clk 0:00:24]} 28. gxh4 {[%clk 0:01:01]}  Nc6 {[%clk 0:00:23]} 29. c5 {[%clk 0:00:49]}  dxc5 {[%clk 0:00:21]} 30. bxc5 {[%clk 0:00:49]}  Qb2 {[%clk 0:00:20]} 31. Rc2 {[%clk 0:00:47]}  Qf6 {[%clk 0:00:20]} 32. Qg3 {[%clk 0:00:37]}  Ne5 {[%clk 0:00:14]} 33. Bd2 {[%clk 0:00:37]}  b6 {[%clk 0:00:12]} 34. Bg5 {[%clk 0:00:36]}  Qc6 {[%clk 0:00:11]} 35. Bg2 {[%clk 0:00:36]}  bxc5 {[%clk 0:00:10]} 36. Bf4 {[%clk 0:00:36]}  Qf6 {[%clk 0:00:07]} 37. Rd5 {[%clk 0:00:36]} 1-0


[Site "https://www.chess.com"]

[Event "Titled Tuesday Blitz April 26 Late 2022"]
[White "Tang, Andrew"]
[Black "Drygalov, Andrey"]
[WhiteFideId "2059630"]
[BlackFideId "24171735"]
[WhiteElo "2584"]
[BlackElo "2540"]
[Result "0-1"]
[Round "04"]
[TimeControl "180+1"]
[Date "2022.04.26"]
[WhiteClock "0:00:14"]
[BlackClock "0:01:27"]

1. d4 {[%clk 0:03:00]}  d5 {[%clk 0:02:59]} 2. Bf4 {[%clk 0:02:55]}  Nf6 {[%clk 0:02:59]} 3. e3 {[%clk 0:02:55]}  c5 {[%clk 0:02:59]} 4. Nf3 {[%clk 0:02:54]}  Nc6 {[%clk 0:02:59]} 5. Nbd2 {[%clk 0:02:54]}  Qb6 {[%clk 0:02:58]} 6. dxc5 {[%clk 0:02:54]}  Qxb2 {[%clk 0:02:58]} 7. Rb1 {[%clk 0:02:55]}  Qc3 {[%clk 0:02:58]} 8. Bb5 {[%clk 0:02:52]}  e6 {[%clk 0:02:58]} 9. O-O {[%clk 0:02:35]}  Be7 {[%clk 0:02:57]} 10. Nd4 {[%clk 0:02:28]}  Bd7 {[%clk 0:02:52]} 11. N2b3 {[%clk 0:02:26]}  O-O {[%clk 0:02:47]} 12. Be2 {[%clk 0:02:23]}  Qb4 {[%clk 0:02:37]} 13. a3 {[%clk 0:01:58]}  Qxa3 {[%clk 0:02:24]} 14. Ra1 {[%clk 0:01:57]}  Qb4 {[%clk 0:02:22]} 15. Nb5 {[%clk 0:01:31]}  Ne4 {[%clk 0:02:15]} 16. Rb1 {[%clk 0:01:17]}  Nc3 {[%clk 0:02:07]} 17. Nxc3 {[%clk 0:01:16]}  Qxc3 {[%clk 0:02:08]} 18. e4 {[%clk 0:01:11]}  Qf6 {[%clk 0:01:57]} 19. Be3 {[%clk 0:00:53]}  Rfd8 {[%clk 0:01:43]} 20. exd5 {[%clk 0:00:51]}  exd5 {[%clk 0:01:44]} 21. Qxd5 {[%clk 0:00:27]}  Bg4 {[%clk 0:01:40]} 22. Qxd8+ {[%clk 0:00:27]}  Rxd8 {[%clk 0:01:40]} 23. Bxg4 {[%clk 0:00:28]}  a5 {[%clk 0:01:39]} 24. Bf3 {[%clk 0:00:27]}  a4 {[%clk 0:01:38]} 25. Nd2 {[%clk 0:00:27]}  a3 {[%clk 0:01:35]} 26. Rxb7 {[%clk 0:00:15]}  a2 {[%clk 0:01:34]} 27. Nb3 {[%clk 0:00:16]}  Ne5 {[%clk 0:01:35]} 28. Be4 {[%clk 0:00:15]}  Ng4 {[%clk 0:01:29]} 29. c6 {[%clk 0:00:14]}  Qe5 {[%clk 0:01:27]} 0-1


[Site "https://www.chess.com"]

[Event "Titled Tuesday Blitz April 26 Late 2022"]
[White "Tatarinov, Dmitry"]
[Black "Prohorov, Olexandr"]
[WhiteFideId "24160067"]
[BlackFideId "14105578"]
[WhiteElo "2302"]
[BlackElo "1993"]
[Result "1-0"]
[Round "04"]
[TimeControl "180+1"]
[Date "2022.04.26"]
[WhiteClock "0:00:47"]
[BlackClock "0:00:38"]

1. d4 {[%clk 0:02:08]}  c5 {[%clk 0:03:00]} 2. d5 {[%clk 0:02:08]}  f5 {[%clk 0:03:00]} 3. g3 {[%clk 0:02:07]}  d6 {[%clk 0:03:00]} 4. Bg2 {[%clk 0:02:08]}  g6 {[%clk 0:03:01]} 5. Nh3 {[%clk 0:02:08]}  Bg7 {[%clk 0:03:01]} 6. O-O {[%clk 0:02:09]}  Nf6 {[%clk 0:03:01]} 7. Nf4 {[%clk 0:02:09]}  O-O {[%clk 0:03:02]} 8. c4 {[%clk 0:02:09]}  Na6 {[%clk 0:03:02]} 9. Nc3 {[%clk 0:02:10]}  Nc7 {[%clk 0:03:03]} 10. Rb1 {[%clk 0:02:10]}  Rb8 {[%clk 0:03:01]} 11. a4 {[%clk 0:02:10]}  a6 {[%clk 0:02:59]} 12. b4 {[%clk 0:02:05]}  cxb4 {[%clk 0:02:53]} 13. Rxb4 {[%clk 0:02:05]}  Nd7 {[%clk 0:02:47]} 14. Qc2 {[%clk 0:01:51]}  Nc5 {[%clk 0:02:42]} 15. Be3 {[%clk 0:01:48]}  e5 {[%clk 0:02:30]} 16. dxe6 {[%clk 0:01:44]}  N5xe6 {[%clk 0:02:28]} 17. Rfb1 {[%clk 0:01:41]}  Nxf4 {[%clk 0:02:17]} 18. Bxf4 {[%clk 0:01:42]}  Ne6 {[%clk 0:02:17]} 19. Nd5 {[%clk 0:01:42]}  Nd4 {[%clk 0:02:09]} 20. Qd2 {[%clk 0:01:39]}  Re8 {[%clk 0:01:58]} 21. Be3 {[%clk 0:01:33]}  Ne6 {[%clk 0:01:42]} 22. Ba7 {[%clk 0:01:29]}  Ra8 {[%clk 0:01:40]} 23. Bb6 {[%clk 0:01:29]}  Qd7 {[%clk 0:01:38]} 24. a5 {[%clk 0:01:29]}  Qf7 {[%clk 0:01:32]} 25. e3 {[%clk 0:01:30]}  Bd7 {[%clk 0:01:29]} 26. Nc7 {[%clk 0:01:28]}  Nxc7 {[%clk 0:01:24]} 27. Bxc7 {[%clk 0:01:29]}  Bc6 {[%clk 0:01:25]} 28. Bxc6 {[%clk 0:01:27]}  bxc6 {[%clk 0:01:26]} 29. Bxd6 {[%clk 0:01:27]}  Red8 {[%clk 0:01:23]} 30. c5 {[%clk 0:01:26]}  Qe6 {[%clk 0:01:21]} 31. Rb7 {[%clk 0:01:12]}  Rd7 {[%clk 0:01:10]} 32. Rxd7 {[%clk 0:01:08]}  Qxd7 {[%clk 0:01:11]} 33. Qa2+ {[%clk 0:01:09]}  Kh8 {[%clk 0:01:00]} 34. Qc4 {[%clk 0:01:09]}  h5 {[%clk 0:00:57]} 35. h4 {[%clk 0:01:08]}  Qe8 {[%clk 0:00:54]} 36. Rb7 {[%clk 0:01:07]}  Bf6 {[%clk 0:00:48]} 37. Qf4 {[%clk 0:00:56]}  Bg7 {[%clk 0:00:47]} 38. Qg5 {[%clk 0:00:51]}  Kg8 {[%clk 0:00:43]} 39. Re7 {[%clk 0:00:50]}  Qf8 {[%clk 0:00:43]} 40. Qxg6 {[%clk 0:00:50]}  Qf6 {[%clk 0:00:38]} 41. Qxh5 {[%clk 0:00:47]} 1-0


[Site "https://www.chess.com"]

[Event "Titled Tuesday Blitz April 26 Late 2022"]
[White "Toniutti, Ezio"]
[Black "Hoffmann, Asa"]
[WhiteFideId "113034"]
[BlackFideId "2001470"]
[WhiteElo "2215"]
[BlackElo "2117"]
[Result "1-0"]
[Round "04"]
[TimeControl "180+1"]
[Date "2022.04.26"]
[WhiteClock "0:00:59"]
[BlackClock "0:01:24"]

1. d4 {[%clk 0:02:57]}  Nf6 {[%clk 0:02:58]} 2. c4 {[%clk 0:02:57]}  c5 {[%clk 0:02:58]} 3. d5 {[%clk 0:02:57]}  e5 {[%clk 0:02:58]} 4. Nc3 {[%clk 0:02:56]}  d6 {[%clk 0:02:58]} 5. e4 {[%clk 0:02:55]}  Be7 {[%clk 0:02:57]} 6. Nf3 {[%clk 0:02:55]}  Nbd7 {[%clk 0:02:57]} 7. Be2 {[%clk 0:02:56]}  Nf8 {[%clk 0:02:57]} 8. O-O {[%clk 0:02:56]}  Ng6 {[%clk 0:02:57]} 9. Ne1 {[%clk 0:02:56]}  O-O {[%clk 0:02:57]} 10. Nd3 {[%clk 0:02:56]}  a6 {[%clk 0:02:56]} 11. b4 {[%clk 0:02:55]}  cxb4 {[%clk 0:02:53]} 12. Nxb4 {[%clk 0:02:54]}  Nd7 {[%clk 0:02:52]} 13. Be3 {[%clk 0:02:53]}  Bg5 {[%clk 0:02:51]} 14. Qd2 {[%clk 0:02:50]}  Bxe3 {[%clk 0:02:51]} 15. Qxe3 {[%clk 0:02:50]}  Nc5 {[%clk 0:02:51]} 16. Nd3 {[%clk 0:02:48]}  b6 {[%clk 0:02:40]} 17. Nxc5 {[%clk 0:02:46]}  bxc5 {[%clk 0:02:39]} 18. Rfb1 {[%clk 0:02:45]}  f5 {[%clk 0:02:37]} 19. exf5 {[%clk 0:02:41]}  Bxf5 {[%clk 0:02:37]} 20. Rb7 {[%clk 0:02:38]}  Rb8 {[%clk 0:02:29]} 21. Rb3 {[%clk 0:02:31]}  Qa5 {[%clk 0:02:26]} 22. Bd1 {[%clk 0:02:01]}  Nf4 {[%clk 0:02:21]} 23. g3 {[%clk 0:01:50]}  Nh5 {[%clk 0:02:02]} 24. Rxb8 {[%clk 0:01:43]}  Rxb8 {[%clk 0:02:00]} 25. Bxh5 {[%clk 0:01:43]}  Qb4 {[%clk 0:01:53]} 26. Be2 {[%clk 0:01:37]}  h6 {[%clk 0:01:49]} 27. Ne4 {[%clk 0:01:15]}  Bxe4 {[%clk 0:01:47]} 28. Qxe4 {[%clk 0:01:13]}  Qb2 {[%clk 0:01:46]} 29. Re1 {[%clk 0:01:12]}  Qxa2 {[%clk 0:01:45]} 30. Bd3 {[%clk 0:01:13]}  Qa5 {[%clk 0:01:38]} 31. Re3 {[%clk 0:01:12]}  Qa1+ {[%clk 0:01:34]} 32. Kg2 {[%clk 0:01:12]}  Qd4 {[%clk 0:01:34]} 33. Qh7+ {[%clk 0:01:11]}  Kf7 {[%clk 0:01:33]} 34. Rf3+ {[%clk 0:01:12]}  Ke8 {[%clk 0:01:33]} 35. Qg8+ {[%clk 0:01:11]}  Kd7 {[%clk 0:01:32]} 36. Qe6+ {[%clk 0:01:10]}  Kc7 {[%clk 0:01:31]} 37. Rf7+ {[%clk 0:01:09]}  Kb6 {[%clk 0:01:29]} 38. Qxd6+ {[%clk 0:01:09]}  Ka5 {[%clk 0:01:30]} 39. Qxb8 {[%clk 0:01:07]}  Qxd3 {[%clk 0:01:27]} 40. Qc7+ {[%clk 0:01:07]}  Kb4 {[%clk 0:01:27]} 41. Qxe5 {[%clk 0:00:59]}  Qe4+ {[%clk 0:01:24]} 42. Qxe4 {[%clk 0:00:59]} 1-0


[Site "https://www.chess.com"]